bitfinex/quotes_ETHUSD_20251226
["timestamp","ask_amount","ask_price","bid_price","bid_amount"]
[1766738748388,4.28741777,2959.4,2958.8,0.9056]
[1766738748589,0.9083,2959.3,2958.6,0.92347878]
[1766738748896,0.42874178,2959.2,2958.6,0.92347878]
[1766738749700,1.33704178,2959.2,2958.6,0.92347878]
[1766738749893,1.33704178,2959.2,2958.6,0.9066]
[1766738750094,0.9083,2959.1,2958.6,0.9066]
[1766738751398,0.9083,2959.1,2958.8,0.001]
[1766738756616,0.9083,2959.1,2958.3,1.01428965]
[1766738756617,0.9083,2959.0,2958.3,1.01428965]
[1766738756908,0.9083,2959.0,2958.1,0.9066]
[1766738757206,0.9083,2959.0,2958.2,0.03380434]
[1766738757510,0.9083,2958.8,2958.1,0.001]
[1766738757674,0.9083,2958.6,2958.1,0.001]
[1766738758306,0.03380015,2958.5,2958.1,0.001]
[1766738759509,4.28828344,2958.6,2958.1,0.001]
[1766738760398,3.37998344,2958.6,2958.1,0.001]
[1766738760605,0.9083,2958.5,2958.1,0.001]
[1766738761206,0.94210015,2958.8,2958.2,0.9056]
[1766738761382,0.94210015,2958.8,2958.2,0.93940434]
[1766738761586,4.32186367,2958.8,2958.2,0.9056]
[1766738764013,7.70162719,2958.8,2958.2,0.9056]
[1766738764214,1.76716272,2958.7,2958.2,0.9056]
[1766738764890,0.9083,2959.0,2958.3,0.03380319]
[1766738765230,4.28782816,2959.0,2958.3,0.0494]
[1766738765730,3.37952816,2959.0,2958.3,0.0494]
[1766738766017,0.9083,2958.9,2958.3,3.3803132]
[1766738766315,0.002,2959.1,2958.6,0.0494]
[1766738766525,0.002,2959.1,2958.7,0.45329476]
[1766738766686,0.002,2959.1,2958.7,0.0494]
[1766738767492,0.9103,2959.1,2958.4,0.95327878]
[1766738767821,0.9103,2959.1,2958.4,0.90387878]
[1766738768191,0.9103,2959.1,2958.5,3.38008117]
[1766738769188,0.9103,2959.1,2958.4,4.33340604]
[1766738769384,0.9103,2959.1,2958.5,0.43335898]
[1766738770230,0.9103,2959.1,2958.5,3.81344063]
[1766738770516,0.9103,2959.1,2958.6,0.08319977]
[1766738773223,0.9103,2959.1,2958.5,0.43335898]
[1766738773421,0.9083,2959.0,2958.6,0.4717392]
[1766738773591,0.9083,2959.0,2958.5,0.43335898]
[1766738774424,0.9083,2959.0,2958.5,3.8133889]
[1766738774790,0.9083,2959.0,2958.6,0.03379977]
[1766738775427,0.002,2959.1,2958.6,3.46316657]
[1766738775729,0.002,2959.1,2958.7,0.38965255]
[1766738775915,0.002,2959.1,2958.8,0.03379748]
[1766738777236,0.002,2959.1,2958.6,0.08319977]
[1766738779128,0.9499,2959.1,2958.5,0.43435898]
[1766738779340,0.9499,2959.1,2958.5,0.001]
[1766738782044,0.9479,2959.0,2958.5,0.001]
[1766738784436,0.9479,2959.0,2958.5,0.03480091]
[1766738787919,0.9479,2958.9,2958.5,0.001]
[1766738790845,1.01438224,2959.5,2958.8,3.99112706]
[1766738790846,0.9479,2959.3,2958.8,3.99112706]
[1766738791048,4.3267641,2959.6,2959.0,3.99112706]
[1766738791456,0.002,2959.1,2959.0,3.99112706]
[1766738791650,0.9479,2959.5,2959.0,3.99112706]
[1766738791861,0.9479,2959.5,2958.9,0.0494]
[1766738792157,4.32694681,2959.5,2959.0,0.0494]
[1766738795263,4.32694681,2959.5,2959.0,0.01730035]
[1766738799058,0.9479,2959.4,2958.9,0.03379634]
[1766738799463,0.9479,2959.3,2958.5,3.38103309]
[1766738799656,0.9479,2959.3,2958.5,4.26803309]
[1766738799858,0.9479,2959.3,2958.5,3.38103309]
[1766738800058,0.8979,2959.3,2958.5,3.38103309]
[1766738800258,0.8979,2959.3,2958.5,3.34891608]
[1766738800478,0.8979,2959.3,2958.6,1.22115985]
[1766738800953,0.9479,2959.2,2958.6,1.22115985]
[1766738805068,3.37930013,2959.2,2958.6,1.22115985]
[1766738805264,0.9515,2959.1,2958.4,3.41436378]
[1766738805449,0.9515,2959.1,2958.4,7.40549084]
[1766738806055,0.9515,2959.1,2958.5,3.38008775]
[1766738806261,0.9515,2959.1,2958.5,3.44738775]
[1766738807158,0.9515,2959.1,2958.5,3.44838775]
[1766738807764,0.9515,2959.1,2958.5,0.0683]
[1766738809780,0.9515,2959.0,2958.5,0.001]
[1766738810942,0.9515,2959.0,2958.5,3.44831603]
[1766738811144,0.9515,2959.0,2958.6,4.02492683]
[1766738811375,0.9515,2959.0,2958.6,4.73845135]
[1766738811686,3.37912281,2959.4,2958.9,0.0673]
[1766738811888,3.38094914,2959.5,2958.9,0.0673]
[1766738812200,1.7375976,2959.4,2958.9,0.0673]
[1766738812354,0.9651,2959.4,2958.9,0.0673]
[1766738816073,0.002,2959.5,2959.0,0.0337952]
[1766738816253,0.002,2959.5,2959.1,4.05642706]
[1766738816772,0.002,2959.5,2959.1,0.0653]
[1766738817284,0.002,2959.5,2959.2,0.09909291]
[1766738817859,0.002,2959.5,2959.2,0.0653]
[1766738820780,0.9671,2959.5,2958.9,0.001]
[1766738822277,0.9651,2959.4,2958.9,0.001]
[1766738823355,0.9651,2959.4,2958.5,0.001]
[1766738823557,0.9651,2959.4,2958.1,0.001]
[1766738823558,0.9651,2959.1,2958.1,0.001]
[1766738823754,0.9651,2959.1,2958.1,0.03480548]
[1766738824162,3.37974854,2958.8,2958.1,0.03480548]
[1766738824367,0.9651,2958.7,2958.1,0.001]
[1766738824589,0.9651,2958.6,2958.1,0.001]
[1766738825174,0.9651,2958.6,2958.1,3.38150318]
[1766738825381,0.9651,2958.6,2958.1,7.43993024]
[1766738825882,0.9651,2958.6,2958.2,0.03380434]
[1766738826065,0.9651,2958.6,2958.1,4.05942706]
[1766738826676,0.9651,2958.6,2958.1,0.10210548]
[1766738827264,0.9651,2958.6,2958.1,0.03480548]
[1766738827666,0.9651,2958.6,2958.1,0.001]
[1766738828365,0.9651,2958.5,2958.1,0.001]
[1766738833094,0.9651,2958.5,2958.0,0.001]
[1766738833095,0.9651,2958.4,2958.0,0.001]
[1766738835697,0.9195,2958.3,2957.7,0.001]
[1766738836673,0.9195,2958.3,2957.7,3.38197395]
[1766738836970,0.9195,2958.3,2957.7,4.19571405]
[1766738837174,0.9215,2958.6,2957.9,4.06042706]
[1766738837389,0.9215,2958.6,2958.0,0.0693]
[1766738837595,0.9215,2958.6,2958.1,0.03380548]
[1766738837904,1.35163128,2958.6,2958.1,0.03380548]
[1766738838278,1.35163128,2958.6,2958.1,0.10310548]
[1766738838478,1.35163128,2958.6,2958.1,0.0693]
[1766738838985,4.73163624,2958.6,2958.1,0.0693]
[1766738839486,0.9195,2958.5,2957.8,0.0693]
[1766738839684,4.29963803,2958.5,2957.8,0.0693]
[1766738840203,0.9195,2958.5,2958.0,0.001]
[1766738843811,0.9195,2958.5,2958.0,0.0703]
[1766738843986,0.9195,2958.5,2958.1,0.03380548]
[1766738849816,0.9195,2958.9,2958.0,3.99212706]
[1766738850011,0.9195,2958.9,2958.1,0.82767418]
[1766738850611,0.9195,2958.7,2958.1,0.82767418]
[1766738850816,0.887,2959.1,2958.1,0.82767418]
[1766738850817,0.9195,2959.2,2958.4,3.99112706]
[1766738850984,0.9195,2959.1,2958.5,0.03380091]
[1766738851181,0.9195,2959.1,2958.1,8.04821424]
[1766738851384,0.9195,2959.1,2958.2,1.24442286]
[1766738853035,0.9195,2958.9,2958.2,1.24442286]
[1766738853222,0.9195,2958.9,2958.2,4.62482926]
[1766738853620,0.002,2958.5,2958.2,4.62482926]
[1766738855125,0.002,2958.5,2958.2,4.62484882]
[1766738855323,0.002,2958.5,2958.3,0.84817276]
[1766738857036,0.002,2958.5,2958.1,3.84]
[1766738857408,0.002,2958.5,2958.0,4.26861969]
[1766738861220,0.9195,2958.9,2958.0,7.64928229]
[1766738862440,4.29916326,2958.9,2958.0,7.64928229]
[1766738862738,4.29916326,2958.9,2958.1,1.15071611]
[1766738862938,0.9195,2958.9,2958.1,5.15904096]
[1766738863442,4.29914229,2958.9,2958.1,5.15904096]
[1766738863644,0.9195,2958.8,2958.1,5.15904096]
[1766738864841,0.9195,2958.8,2958.1,8.5395863]
[1766738865039,0.9195,2958.8,2958.2,0.94275863]
[1766738865241,0.9528,2958.7,2958.2,0.94275863]
[1766738865424,0.9528,2958.7,2958.1,0.01687878]
[1766738866444,0.9528,2958.7,2958.1,3.39740826]
[1766738866942,0.9528,2958.7,2958.1,3.38052948]
[1766738867143,0.9528,2958.7,2958.2,0.03380434]
[1766738867445,0.9528,2958.9,2958.3,0.34143338]
[1766738867648,0.9528,2958.9,2958.4,0.03380205]
[1766738867817,0.9528,2958.9,2958.2,0.03380434]
[1766738868022,0.002,2958.8,2958.2,0.03380434]
[1766738868848,0.9092,2959.3,2958.4,3.99144607]
[1766738869037,0.9092,2959.3,2958.5,0.4346334]
[1766738870738,0.9092,2959.3,2958.5,3.78089628]
[1766738870739,0.9092,2959.2,2958.5,3.78089628]
[1766738875863,0.9092,2959.2,2958.6,0.03379977]
[1766738877171,0.9112,2959.2,2958.6,0.03379977]
[1766738877458,0.9112,2959.2,2958.6,1.15243446]
[1766738878855,0.9112,2959.2,2958.6,4.53240051]
[1766738879227,0.002,2959.2,2958.6,7.91237752]
[1766738879433,4.29020217,2959.5,2958.6,7.87857775]
[1766738879662,0.9092,2959.4,2958.7,0.03379862]
[1766738879862,0.9092,2959.4,2958.7,0.74063953]
[1766738881262,4.28827392,2959.4,2958.7,0.74063953]
[1766738881456,0.9092,2959.3,2958.7,0.74063953]
[1766738882259,0.9092,2959.3,2958.7,4.12049489]
[1766738882764,0.9092,2959.3,2958.7,0.74063953]
[1766738882944,0.9092,2959.3,2958.6,3.37991897]
[1766738884238,0.9092,2959.2,2958.5,3.3969162]
[1766738885466,0.9092,2959.2,2958.5,3.3979162]
[1766738885973,0.9092,2959.2,2958.5,3.38103742]
[1766738887370,0.9092,2959.1,2958.5,0.001]
[1766738890482,0.9092,2959.1,2958.5,0.03480091]
[1766738890771,0.9092,2959.1,2958.5,0.001]
[1766738896871,0.9092,2959.1,2958.5,0.03480091]
[1766738897069,0.002,2959.2,2958.5,0.03480091]
[1766738897267,0.9348,2959.2,2958.6,1.07866429]
[1766738897449,0.002,2959.5,2958.7,4.04212347]
[1766738898082,3.38097944,2959.5,2958.7,4.04212347]
[1766738898375,3.38097944,2959.5,2958.7,4.00832485]
[1766738898967,0.9328,2959.4,2958.7,4.00832485]
[1766738899172,0.9328,2959.4,2958.7,5.15596865]
[1766738899770,0.9328,2959.4,2958.7,8.5358128]
[1766738901372,0.9328,2959.4,2958.7,11.91567557]
[1766738901976,0.9328,2959.4,2958.8,0.03379748]
[1766738902480,0.002,2959.5,2958.8,0.03379748]
[1766738902666,0.002,2959.5,2958.9,1.07866429]
[1766738902858,0.002,2959.5,2959.0,0.0337952]
[1766738904348,0.002,2959.5,2959.0,3.41329667]
[1766738904571,0.002,2959.5,2959.0,0.0337952]
[1766738904776,0.002,2959.5,2959.0,3.4132978]
[1766738904966,0.002,2959.5,2959.0,0.82096293]
[1766738907062,0.002,2959.5,2959.0,3.41330864]
[1766738908594,0.002,2959.7,2959.1,0.9093]
[1766738908888,0.002,2959.7,2959.2,0.94309291]
[1766738909988,0.002,2959.5,2959.2,0.94309291]
[1766738910191,3.37849777,2959.9,2959.2,0.94309291]
[1766738910487,0.9328,2959.8,2959.2,0.94309291]
[1766738911287,0.9328,2959.8,2959.2,4.32236071]
[1766738911661,0.9328,2959.8,2959.2,0.94309291]
[1766738912293,0.9328,2959.8,2959.2,4.32237751]
[1766738912480,0.9328,2959.8,2959.2,0.94309291]
[1766738912657,0.9328,2959.8,2959.3,0.9334]
[1766738913555,0.9348,2960.0,2959.4,0.96719063]
[1766738913757,0.002,2960.3,2959.9,4.92013304]
[1766738913956,0.002,2960.4,2960.0,0.96518378]
[1766738914377,0.002,2960.7,2960.2,0.9294]
[1766738915654,0.002,2960.7,2959.9,7.36717294]
[1766738915854,0.9328,2960.6,2959.9,0.9294]
[1766738916092,0.9348,2960.5,2959.8,3.3785729]
[1766738916290,0.9348,2960.5,2959.7,4.26566482]
[1766738916491,0.9348,2960.5,2959.8,3.37859414]
[1766738916697,0.9348,2960.5,2959.9,3.37848247]
[1766738916920,0.9348,2960.5,2959.8,4.30795746]
[1766738918775,0.9348,2960.5,2959.7,1.71412766]
[1766738918976,0.9328,2960.4,2959.5,3.00561182]
[1766738919375,0.9328,2960.4,2959.7,3.37864762]
[1766738920198,0.90068842,2960.4,2959.7,3.37864762]
[1766738920899,0.90068842,2960.4,2959.6,3.37883497]
[1766738922077,0.90068842,2960.4,2959.6,6.75766994]
[1766738922400,0.90068842,2960.4,2959.7,0.97632818]
[1766738923703,0.90068842,2960.4,2959.7,4.35496202]
[1766738923907,0.9483,2960.4,2959.8,0.9667]
[1766738927816,4.32622891,2960.4,2959.8,0.9667]
[1766738928014,3.37792891,2960.4,2959.8,0.9667]
[1766738928315,0.9483,2960.3,2959.6,4.30387562]
[1766738928701,0.9483,2960.3,2959.6,0.9251]
[1766738929621,0.9483,2960.3,2959.6,4.30392843]
[1766738930192,0.9483,2960.3,2959.7,0.0337872]
[1766738930394,0.9483,2960.3,2959.7,0.9578872]
[1766738932213,1.45756993,2960.3,2959.7,0.9578872]
[1766738933103,1.45756993,2960.3,2959.7,4.33660172]
[1766738933320,1.45756993,2960.3,2959.8,0.9241]
[1766738934321,0.50926993,2960.3,2959.9,0.03378492]
[1766738934622,0.50926993,2960.3,2960.0,0.9241]
[1766738937216,0.002,2960.5,2960.0,0.9241]
[1766738937921,3.37981001,2960.5,2960.0,0.9241]
[1766738940330,0.887,2960.4,2960.0,0.9241]
[1766738940629,0.889,2960.4,2960.0,0.9241]
[1766738941629,0.002,2960.7,2960.2,0.9241]
[1766738941807,0.002,2960.7,2960.4,0.9241]
[1766738950668,0.887,2960.8,2960.3,0.9241]
[1766738950862,0.002,2961.0,2960.7,0.9241]
[1766738951926,3.37926415,2961.0,2960.7,0.9241]
[1766738952252,4.32756415,2961.0,2960.3,0.9241]
[1766738952453,4.32756415,2961.0,2960.3,0.95788036]
[1766738954155,0.9677,2960.9,2960.3,0.95788036]
[1766738954575,0.9677,2960.9,2960.3,5.10732032]
[1766738954950,0.9677,2960.9,2960.3,4.18322032]
[1766738955150,0.9677,2960.9,2960.3,5.10382032]
[1766738955371,0.9677,2960.9,2960.4,0.9206]
[1766738955871,0.9697,2960.9,2960.4,0.9206]
[1766738956276,0.002,2960.9,2960.5,0.9206]
[1766738960682,0.9677,2960.6,2959.9,8.13905922]
[1766738960867,0.9677,2960.6,2960.0,0.9206]
[1766738961387,0.9677,2960.8,2960.2,0.9206]
[1766738961547,0.888,2960.9,2960.3,0.9206]
[1766738962062,1.8557,2960.9,2960.3,0.9206]
[1766738962773,3.37746554,2960.8,2960.3,0.9206]
[1766738963675,4.34516554,2960.8,2960.3,0.9206]
[1766738964804,4.34516554,2960.8,2960.3,0.9216]
[1766738965157,5.20641747,2960.8,2960.3,0.9216]
[1766738966193,0.9677,2960.8,2960.3,0.9216]
[1766738966394,0.9677,2960.8,2960.3,0.001]
[1766738970104,0.002,2960.9,2960.4,0.9206]
[1766738970271,0.002,2960.9,2960.6,0.9206]
[1766738970972,0.9060225,2961.3,2960.7,0.03377579]
[1766738971171,0.9677,2961.5,2960.8,0.9206]
[1766738971785,0.9677,2961.5,2960.6,0.01687878]
[1766738971995,3.37856724,2961.6,2960.9,0.9206]
[1766738972673,3.37857114,2961.6,2960.9,0.9206]
[1766738973868,0.002,2961.6,2960.9,0.9206]
[1766738974202,3.37857579,2961.6,2960.9,0.9206]
[1766738974977,0.002,2961.6,2961.0,0.9206]
[1766738975375,0.002,2961.6,2961.1,0.9206]
[1766738976203,0.002,2961.6,2961.1,0.95437123]
[1766738976575,0.002,2961.6,2961.2,0.9206]
[1766738976899,3.37824768,2961.9,2961.0,4.72758575]
[1766738976900,4.34592666,2961.9,2961.0,4.72758575]
[1766738977107,0.9677,2961.7,2960.8,0.9206]
[1766738977318,0.9677,2961.7,2960.9,3.41105979]
[1766738977494,0.9677,2961.7,2961.0,0.9206]
[1766738978082,3.37655321,2961.6,2961.0,0.9206]
[1766738978279,4.34425321,2961.6,2961.0,0.9206]
[1766738978513,0.9677,2961.5,2961.0,0.9206]
[1766738978712,0.9677,2961.5,2960.6,0.9206]
[1766738979283,0.9677,2961.5,2960.7,0.95437579]
[1766738980301,4.34448125,2961.4,2960.7,0.95437579]
[1766738980800,0.9677,2961.4,2960.7,0.95437579]
[1766738981331,1.82586173,2961.4,2960.7,0.95437579]
[1766738981998,1.82586173,2961.4,2960.8,0.9206]
[1766738982417,5.20268694,2961.4,2960.8,0.9206]
[1766738983222,1.82586173,2961.4,2960.8,0.9206]
[1766738983516,0.9677,2961.4,2960.8,0.9206]
[1766738983706,3.37670702,2961.5,2960.9,0.03377351]
[1766738983912,3.37670702,2961.5,2961.0,0.9356]
[1766738986722,0.9262,2961.4,2960.9,0.001]
[1766738986928,1.6941614,2961.3,2960.9,0.001]
[1766738989529,5.07108719,2961.3,2960.9,0.001]
[1766738990827,8.44801298,2961.3,2960.9,0.001]
[1766738991329,8.44801298,2961.3,2960.6,3.84]
[1766738991632,5.07108719,2961.3,2960.6,3.84]
[1766738991925,5.07108719,2961.3,2960.6,4.8298]
[1766738991926,0.84479078,2961.2,2960.6,4.8298]
[1766738992139,0.84479078,2961.2,2960.6,0.9898]
[1766738993054,1.77099078,2961.2,2960.6,0.9898]
[1766738993639,4.30332336,2961.1,2960.6,0.9898]
[1766738993841,0.51481141,2961.0,2960.6,0.9898]
[1766738994920,1.44101141,2961.0,2960.5,0.001]
[1766738995329,0.9262,2961.0,2960.5,0.9908]
[1766738996021,0.9262,2961.0,2960.5,4.36859897]
[1766738996222,0.9262,2961.0,2960.5,0.9908]
[1766738996630,3.37705379,2961.2,2960.6,0.9898]
[1766738996835,4.30325379,2961.2,2960.6,0.9898]
[1766738997541,3.37705379,2961.2,2960.6,0.9898]
[1766738997735,1.8122,2961.5,2960.7,1.02357579]
[1766738997935,0.9262,2961.5,2960.7,1.02357579]
[1766738998257,4.30298125,2961.4,2960.7,1.02357579]
[1766738999459,0.9262,2961.3,2960.7,0.9898]
[1766738999654,1.69417625,2961.3,2960.7,0.9898]
[1766738999956,1.69417625,2961.3,2960.7,0.95768842]
[1766739000756,0.9262,2961.1,2960.5,0.001]
[1766739000958,0.9262,2961.1,2960.5,0.9908]
[1766739008362,4.30337771,2961.1,2960.5,0.9908]
[1766739009083,0.9262,2961.1,2960.5,0.9908]
[1766739009250,0.9262,2961.1,2960.5,1.42777122]
[1766739010075,0.9262,2961.1,2960.6,0.9898]
[1766739010538,0.9282,2961.1,2960.6,0.9898]
[1766739011868,0.9262,2961.0,2960.5,0.43797122]
[1766739012173,0.9262,2961.0,2960.5,1.42777122]
[1766739012469,0.002,2961.1,2960.6,0.9898]
[1766739013877,3.37914501,2961.1,2960.6,0.9898]
[1766739015982,0.002,2961.1,2960.6,0.9898]
[1766739016181,0.002,2961.3,2960.6,3.89201316]
[1766739016402,3.37836362,2961.8,2960.8,0.92367878]
[1766739016686,3.37836362,2961.8,2961.0,0.9068]
[1766739016890,3.37836362,2961.8,2961.2,0.9068]
[1766739017104,0.002,2961.8,2961.2,0.9068]
[1766739018667,0.9876,2961.7,2961.2,0.9068]
[1766739019889,3.37655321,2961.6,2961.2,0.9068]
[1766739020591,0.9876,2961.7,2961.2,0.9068]
[1766739020592,4.36407659,2961.7,2961.2,0.9068]
[1766739020788,4.36406464,2961.7,2961.2,0.9068]
[1766739020972,3.37646464,2961.7,2961.2,0.9068]
[1766739021172,3.37838068,2961.8,2961.2,0.9068]
[1766739022109,0.002,2961.8,2961.2,0.9068]
[1766739022667,0.002,2961.8,2961.2,0.42839692]
[1766739022872,0.002,2961.8,2961.3,0.9068]
[1766739024021,0.002,2961.9,2961.3,0.9068]
[1766739024224,0.002,2962.1,2961.4,0.94056781]
[1766739024698,0.002,2962.1,2961.4,0.9068]
[1766739024901,0.002,2962.1,2961.5,0.9068]
[1766739026293,0.002,2962.1,2961.5,0.94056667]
[1766739026690,0.002,2962.1,2961.6,0.9068]
[1766739026876,3.3756944,2962.4,2961.8,0.9068]
[1766739027899,0.002,2962.1,2961.8,0.9068]
[1766739029386,0.002,2962.1,2961.9,0.03376211]
[1766739029589,4.36517383,2962.5,2961.9,0.94056211]
[1766739030003,7.74074766,2962.5,2961.9,0.9068]
[1766739030785,0.9876,2962.4,2961.9,0.9068]
[1766739032006,0.9876,2962.3,2961.5,0.9068]
[1766739032506,3.37586928,2962.2,2961.5,3.37660872]
[1766739032695,4.36340254,2962.3,2961.6,0.9068]
[1766739034102,0.9876,2962.2,2961.6,0.9068]
[1766739036191,0.002,2962.3,2961.7,0.94056439]
[1766739036392,0.002,2962.3,2961.9,0.9068]
[1766739042733,0.002,2962.3,2961.9,0.9078]
[1766739048307,0.002,2962.3,2962.0,0.99406097]
[1766739049433,0.002,2962.3,2962.0,0.9603]
[1766739051215,0.002,2962.5,2962.0,0.9603]
[1766739054747,0.002,2962.5,2962.1,0.43374918]
[1766739055126,0.002,2962.5,2962.1,1.39404918]
[1766739057413,0.002,2962.5,2962.2,0.9603]
[1766739058817,0.002,2962.5,2962.1,0.43374918]
[1766739059017,0.002,2962.5,2962.0,0.9603]
[1766739060509,0.002,2962.5,2962.0,3.37608397]
[1766739060748,0.002,2962.5,2962.1,0.99405983]
[1766739062842,4.30769546,2962.8,2962.2,0.9603]
[1766739063227,4.30769546,2962.8,2962.2,1.39393573]
[1766739063944,0.9325,2962.7,2962.2,1.39393573]
[1766739064146,3.98288683,2962.6,2962.0,0.9603]
[1766739064311,0.9325,2962.5,2962.0,0.9603]
[1766739065950,0.9325,2962.5,2962.0,0.9613]
[1766739070177,4.3097208,2962.8,2962.1,0.99405983]
[1766739070962,4.3097208,2962.8,2962.2,0.9603]
[1766739072467,0.9325,2962.6,2962.0,0.001]
[1766739072967,0.9325,2962.6,2962.0,0.9613]
[1766739074466,4.30794584,2962.6,2962.0,0.9613]
[1766739077077,0.9325,2962.6,2962.0,0.9613]
[1766739077447,3.37723406,2962.8,2962.1,0.9109]
[1766739077656,3.37723406,2962.8,2962.2,0.94465869]
[1766739077968,0.002,2962.8,2962.2,0.94465869]
[1766739078743,0.002,2962.8,2962.2,0.9109]
[1766739079471,0.002,2962.8,2962.1,0.9109]
[1766739080043,0.002,2962.8,2962.3,0.9109]
[1766739080266,0.002,2962.8,2962.4,1.33957688]
[1766739080465,0.002,2962.8,2962.5,0.9109]
[1766739088574,0.002,2962.8,2962.2,4.7509]
[1766739088951,0.002,2962.8,2962.3,0.9109]
[1766739096299,0.002,2962.8,2962.3,0.9119]
[1766739096593,0.002,2962.8,2962.4,1.38609]
[1766739097292,0.002,2962.8,2962.5,0.9109]
[1766739101691,0.002,2962.8,2962.3,0.001]
[1766739101887,0.002,2963.3,2962.7,0.9109]
[1766739103994,0.002,2963.3,2962.8,1.35772831]
[1766739104167,0.002,2963.3,2962.9,0.9291]
[1766739105890,0.9123,2963.3,2962.6,4.30449364]
[1766739106187,0.9123,2963.3,2962.6,0.9291]
[1766739106971,0.9123,2963.3,2962.6,4.30450233]
[1766739107169,0.9123,2963.3,2962.7,0.51915023]
[1766739109902,0.9123,2963.3,2962.7,1.44825023]
[1766739113421,0.9123,2963.3,2962.7,4.82353246]
[1766739113593,0.9123,2963.3,2962.8,0.03375185]
[1766739116034,0.9103,2963.2,2962.7,1.44825023]
[1766739116240,0.9103,2963.2,2962.8,0.03375185]
[1766739117733,0.002,2963.3,2962.8,0.03375185]
[1766739118644,0.002,2963.3,2962.7,4.30439713]
[1766739119540,0.9123,2963.3,2962.7,0.9291]
[1766739119758,0.9123,2963.3,2962.8,0.43044564]
[1766739120241,0.9123,2963.3,2962.7,0.9291]
[1766739121901,0.9123,2963.3,2962.5,3.841]
[1766739121902,0.9103,2963.2,2962.5,3.841]
[1766739122248,0.9103,2963.2,2962.1,3.84]
[1766739122249,0.9103,2962.9,2962.1,3.84]
[1766739122636,3.98107582,2962.7,2962.1,3.84]
[1766739122949,3.98107582,2962.7,2961.9,4.30629361]
[1766739122950,0.9103,2962.5,2961.9,4.30629361]
[1766739123458,0.9103,2962.5,2961.9,0.9301]
[1766739125310,3.37556681,2962.5,2961.9,0.9301]
[1766739125548,0.9103,2962.4,2961.9,0.001]
[1766739136271,3.37547151,2962.6,2961.5,0.9346]
[1766739136272,6.75151064,2962.3,2961.5,0.9346]
[1766739136455,1.67155106,2962.2,2961.5,0.9346]
[1766739136632,0.9964,2962.2,2961.6,0.9346]
[1766739137460,0.9964,2962.2,2961.7,0.03376439]
[1766739137959,0.9964,2962.2,2961.6,0.9346]
[1766739138360,0.9964,2962.2,2961.7,0.03376439]
[1766739138539,4.37228328,2962.2,2961.7,0.03376439]
[1766739139067,4.37228328,2962.2,2961.6,0.9346]
[1766739139566,4.37228328,2962.2,2961.7,0.03376439]
[1766739140469,4.37228328,2962.2,2961.6,0.96836553]
[1766739140842,6.75176656,2962.2,2961.4,0.67716201]
[1766739141040,0.9964,2962.1,2961.4,0.9346]
[1766739141241,0.9964,2962.1,2961.3,0.001]
[1766739141440,0.9964,2962.1,2961.3,0.9356]
[1766739141672,0.9964,2962.1,2961.3,0.001]
[1766739141840,0.9964,2961.9,2961.3,0.001]
[1766739142036,0.9964,2961.9,2961.6,0.001]
[1766739142597,4.37264622,2961.9,2961.6,0.001]
[1766739142765,1.17292424,2962.0,2961.6,0.001]
[1766739142766,4.54908234,2962.0,2961.6,0.001]
[1766739143293,5.54548234,2962.0,2961.6,0.001]
[1766739143476,0.89214853,2961.9,2961.6,0.001]
[1766739144093,1.88854853,2961.9,2961.6,0.001]
[1766739144592,5.26477907,2961.9,2961.6,0.001]
[1766739146265,1.88854853,2961.9,2961.6,0.001]
[1766739146774,5.2647672,2961.9,2961.6,0.001]
[1766739147187,1.88854853,2961.9,2961.6,0.001]
[1766739148694,4.2683601,2961.9,2961.6,0.001]
[1766739148880,0.9964,2961.8,2961.3,0.001]
[1766739149977,0.9964,2962.2,2961.3,0.001]
[1766739150175,1.01339197,2962.0,2961.4,0.9346]
[1766739150380,1.66079106,2962.1,2961.5,0.96936667]
[1766739150586,0.886,2962.1,2961.5,0.96936667]
[1766739150989,0.9964,2962.0,2961.5,0.03476667]
[1766739151207,0.9964,2962.0,2961.5,0.001]
[1766739152301,0.9964,2962.0,2961.5,0.03476667]
[1766739155303,4.37251261,2962.0,2961.5,0.03476667]
[1766739156107,0.9964,2962.0,2961.5,0.03476667]
[1766739156305,0.9964,2961.9,2961.5,0.03476667]
[1766739156504,0.9964,2961.9,2961.5,0.001]
[1766739156676,3.37609873,2962.0,2961.5,0.001]
[1766739156872,3.37609873,2962.0,2961.5,0.03476667]
[1766739157197,3.37609873,2962.0,2961.5,0.9356]
[1766739157396,0.9964,2961.9,2961.5,0.001]
[1766739157596,0.9964,2961.8,2961.5,0.001]
[1766739158584,0.9964,2961.8,2961.3,0.001]
[1766739159612,0.9964,2961.8,2961.5,0.001]
[1766739160712,0.9964,2961.9,2961.5,0.001]
[1766739161214,0.002,2962.0,2961.5,0.001]
[1766739161582,0.002,2962.0,2961.5,0.03476667]
[1766739161783,0.9964,2961.9,2961.5,0.03476667]
[1766739162102,0.9964,2961.9,2961.5,0.001]
[1766739164582,0.9964,2961.9,2961.3,0.03476895]
[1766739164786,0.9964,2961.9,2961.4,0.34117026]
[1766739165010,0.9964,2961.9,2961.5,0.03376667]
[1766739165603,0.03576667,2962.0,2961.4,1.25157026]
[1766739165785,0.9946,2961.9,2961.4,0.34117026]
[1766739166805,0.03576667,2962.0,2961.4,1.25157026]
[1766739167112,0.002,2962.0,2961.5,0.94416667]
[1766739167323,4.42280443,2962.3,2961.6,0.9104]
[1766739167531,4.42280443,2962.3,2961.7,0.94416439]
[1766739167731,5.41740443,2962.3,2961.7,0.94416439]
[1766739168225,0.5,2962.2,2961.7,0.94416439]
[1766739169030,0.002,2962.0,2961.7,0.94416439]
[1766739179947,5.41746015,2962.3,2961.7,0.9104]
[1766739179948,4.40417771,2962.3,2961.7,0.9104]
[1766739180244,3.41146678,2962.4,2961.8,0.9104]
[1766739180412,0.5,2962.3,2961.8,0.9104]